bitfinex/quotes_BTCUSD_20251116
["timestamp","ask_amount","ask_price","bid_price","bid_amount"]
[1763293436457,0.03140718,95721.0,95704.0,0.02299]
[1763293436458,0.01925401,95706.0,95705.0,0.01145]
[1763293436866,0.01925401,95720.0,95705.0,0.01145]
[1763293437237,0.02288254,95719.0,95705.0,0.01145]
[1763293437410,0.02288254,95718.0,95705.0,0.01145]
[1763293437612,0.03140718,95721.0,95705.0,0.01145]
[1763293437613,0.02288254,95717.0,95705.0,0.01145]
[1763293437818,0.02288254,95716.0,95705.0,0.01145]
[1763293438037,0.02288254,95715.0,95705.0,0.01145]
[1763293438270,0.02288254,95714.0,95705.0,0.01145]
[1763293438425,0.02288254,95713.0,95705.0,0.01145]
[1763293438622,0.02288254,95712.0,95705.0,0.01145]
[1763293438948,0.02288254,95711.0,95705.0,0.01145]
[1763293439144,0.02288254,95710.0,95705.0,0.01145]
[1763293439346,0.02288254,95709.0,95705.0,0.01145]
[1763293439573,0.02288254,95708.0,95705.0,0.01145]
[1763293439691,0.02288254,95707.0,95705.0,0.01145]
[1763293439896,0.02288254,95706.0,95705.0,0.01145]
[1763293440299,0.02288229,95706.0,95705.0,0.01145]
[1763293440521,0.02288229,95706.0,95700.0,0.00999999]
[1763293440721,0.02288229,95705.0,95691.0,0.00013553]
[1763293441058,0.02288229,95704.0,95691.0,0.00013553]
[1763293441214,0.02288229,95703.0,95691.0,0.02312553]
[1763293441424,0.01925401,95702.0,95691.0,0.02312553]
[1763293441617,0.01925401,95701.0,95691.0,0.02312553]
[1763293441809,0.01877401,95700.0,95691.0,0.02312553]
[1763293442006,0.02299,95716.0,95691.0,0.02312553]
[1763293442305,0.00362815,95715.0,95691.0,0.02312553]
[1763293443164,0.00362815,95715.0,95692.0,0.00651713]
[1763293443385,0.00362815,95715.0,95691.0,0.02312553]
[1763293443589,0.178255,95731.0,95691.0,0.02312553]
[1763293443800,0.02299,95718.0,95691.0,0.00013553]
[1763293443942,0.001,95715.0,95691.0,0.00013553]
[1763293444710,0.002,95715.0,95691.0,0.00013553]
[1763293445111,0.001,95715.0,95691.0,0.00013553]
[1763293445655,0.002,95715.0,95691.0,0.00013553]
[1763293445964,0.001,95715.0,95691.0,0.00013553]
[1763293446166,0.002,95715.0,95691.0,0.00013553]
[1763293450039,0.04341874,95712.0,95691.0,0.00013553]
[1763293450257,0.323,95711.0,95691.0,0.00013553]
[1763293450424,0.34646539,95711.0,95691.0,0.00013553]
[1763293451849,0.36641874,95710.0,95691.0,0.00013553]
[1763293452918,0.04341874,95710.0,95691.0,0.00013553]
[1763293453583,0.36741874,95710.0,95691.0,0.00013553]
[1763293453789,0.04341874,95708.0,95691.0,0.00013553]
[1763293454004,0.04341874,95706.0,95691.0,0.00013553]
[1763293454251,0.01922166,95705.0,95691.0,0.00013553]
[1763293454465,0.01922166,95704.0,95691.0,0.00013553]
[1763293454716,0.01922166,95703.0,95691.0,0.00013553]
[1763293454898,0.01922166,95702.0,95691.0,0.00013553]
[1763293455110,0.01922166,95701.0,95691.0,0.00013553]
[1763293455325,0.01922166,95700.0,95691.0,0.00013553]
[1763293455475,0.02249653,95699.0,95691.0,0.00013553]
[1763293455654,0.02249653,95698.0,95691.0,0.00013553]
[1763293455854,0.02249653,95697.0,95691.0,0.00013553]
[1763293456111,0.02249653,95696.0,95691.0,0.00013553]
[1763293456413,0.02248434,95695.0,95691.0,0.00013553]
[1763293456621,0.02248434,95694.0,95691.0,0.00013553]
[1763293456816,0.02248434,95693.0,95691.0,0.00013553]
[1763293456980,0.02248434,95692.0,95691.0,0.00013553]
[1763293457570,0.04508434,95692.0,95691.0,0.00013553]
[1763293458566,0.04608434,95692.0,95691.0,0.00013553]
[1763293462889,0.04508434,95692.0,95691.0,0.00013553]
[1763293463098,0.04508434,95692.0,95691.0,0.01190553]
[1763293463255,0.04608434,95692.0,95691.0,0.01190553]
[1763293464485,0.04607763,95692.0,95691.0,0.01190553]
[1763293464684,0.04607763,95692.0,95691.0,0.00013553]
[1763293467164,0.04507763,95692.0,95691.0,0.00013553]
[1763293467368,0.04607763,95692.0,95691.0,0.00013553]
[1763293470058,0.04507763,95692.0,95691.0,0.00013553]
[1763293470458,0.04607763,95692.0,95691.0,0.00013553]
[1763293475004,0.06247423,95692.0,95691.0,0.00013553]
[1763293476624,0.06872165,95692.0,95691.0,0.00013553]
[1763293477285,0.06247423,95692.0,95691.0,0.00013553]
[1763293479063,0.06147423,95692.0,95691.0,0.00013553]
[1763293479466,0.06247423,95692.0,95691.0,0.00013553]
[1763293479865,0.06147423,95692.0,95691.0,0.00013553]
[1763293480069,0.06247423,95692.0,95691.0,0.00013553]
[1763293480267,0.07093914,95692.0,95691.0,0.00013553]
[1763293480763,0.07093914,95692.0,95690.0,0.0015958]
[1763293480939,0.02247763,95691.0,95690.0,0.00164096]
[1763293481965,0.02347763,95691.0,95690.0,0.00164096]
[1763293482173,0.02347763,95691.0,95661.0,0.01226]
[1763293482414,0.02247763,95690.0,95661.0,0.01271147]
[1763293482586,0.0706357,95689.0,95661.0,0.01271147]
[1763293482789,0.02247763,95688.0,95661.0,0.01271147]
[1763293483158,0.02247763,95687.0,95661.0,0.00045147]
[1763293483292,0.02247763,95686.0,95661.0,0.00045147]
[1763293483494,0.03457325,95685.0,95661.0,0.00045147]
[1763293483761,0.02247763,95684.0,95661.0,0.00045147]
[1763293483960,0.02247763,95683.0,95661.0,0.00045147]
[1763293484153,0.02247763,95682.0,95661.0,0.01271147]
[1763293484361,0.02247763,95681.0,95661.0,0.01271147]
[1763293484563,0.02247763,95680.0,95661.0,0.01271147]
[1763293484765,0.02247763,95679.0,95662.0,0.02411]
[1763293484984,0.02247763,95678.0,95670.0,0.00999999]
[1763293485158,0.02247763,95677.0,95670.0,0.02899997]
[1763293485367,0.02247763,95676.0,95671.0,0.03637]
[1763293485568,0.01920276,95675.0,95671.0,0.03637]
[1763293485758,0.01920276,95674.0,95672.0,0.02411]
[1763293486131,0.01920276,95673.0,95672.0,0.02411]
[1763293486346,0.01920276,95678.0,95672.0,0.02411]
[1763293486548,0.02217483,95719.0,95700.0,0.00999999]
[1763293486770,0.02247763,95708.0,95700.0,0.02061999]
[1763293486977,0.02217483,95731.0,95722.0,0.01226]
[1763293487186,0.01417213,95734.0,95731.0,0.01226]
[1763293487398,0.02389814,95733.0,95732.0,0.02411]
[1763293488236,0.02389814,95733.0,95731.0,0.01226]
[1763293488450,0.00327815,95732.0,95731.0,0.01226]
[1763293490159,0.02061999,95733.0,95731.0,0.01226]
[1763293491034,0.0032713,95732.0,95722.0,0.01226]
[1763293492183,0.0042713,95732.0,95722.0,0.03637]
[1763293492383,0.0032713,95731.0,95722.0,0.03637]
[1763293492605,0.0032713,95731.0,95730.0,0.01586]
[1763293493813,0.0032713,95731.0,95723.0,0.02411]
[1763293494159,0.02061999,95733.0,95723.0,0.02411]
[1763293494299,0.02061999,95733.0,95732.0,0.01586]
[1763293494499,0.02389139,95733.0,95732.0,0.01586]
[1763293495112,0.02061999,95733.0,95732.0,0.01586]
[1763293495316,0.02061999,95733.0,95722.0,0.01226]
[1763293495514,0.01424875,95741.0,95732.0,0.02812]
[1763293495712,0.00013552,95741.0,95732.0,0.02812]
[1763293496104,0.01454171,95741.0,95732.0,0.02812]
[1763293496309,0.01454171,95741.0,95732.0,0.01226]
[1763293496519,0.001,95733.0,95727.0,0.02411]
[1763293496940,0.01454171,95732.0,95727.0,0.02411]
[1763293498224,0.01454171,95732.0,95726.0,0.01226]
[1763293498414,0.01911666,95731.0,95722.0,0.01226]
[1763293499602,0.02011666,95731.0,95722.0,0.01210946]
[1763293499800,0.01911666,95730.0,95722.0,0.01210946]
[1763293500457,0.01911666,95730.0,95720.0,0.00999999]
[1763293500668,0.01911666,95730.0,95711.0,0.03637]
[1763293500669,0.00655,95721.0,95711.0,0.01226]
[1763293500890,0.00655,95721.0,95706.0,0.01226]
[1763293500891,0.01911666,95720.0,95706.0,0.01226]
[1763293501078,0.00327195,95719.0,95706.0,0.01226]
[1763293501255,0.01911666,95718.0,95700.0,0.02225999]
[1763293501469,0.00327195,95717.0,95700.0,0.02225999]
[1763293501673,0.01911666,95716.0,95700.0,0.02225999]
[1763293502046,0.02238863,95715.0,95700.0,0.02225999]
[1763293502247,0.01911666,95714.0,95700.0,0.02225999]
[1763293502494,0.01911666,95713.0,95700.0,0.02225999]
[1763293502661,0.01911666,95712.0,95700.0,0.02225999]
[1763293502877,0.01911666,95711.0,95700.0,0.02225999]
[1763293503088,0.01911666,95710.0,95700.0,0.02225999]
[1763293503281,0.01911666,95709.0,95700.0,0.01226]
[1763293503498,0.01911666,95708.0,95700.0,0.02225999]
[1763293503701,0.01911666,95707.0,95700.0,0.02225999]
[1763293503985,0.01911666,95706.0,95700.0,0.02239524]
[1763293504185,0.01911666,95705.0,95700.0,0.02239524]
[1763293504388,0.01911666,95704.0,95701.0,0.02277]
[1763293504551,0.01911666,95703.0,95701.0,0.02277]
[1763293504759,0.01911666,95702.0,95701.0,0.02277]
[1763293504984,0.01911666,95713.0,95712.0,0.01593]
[1763293505228,0.01912255,95740.0,95720.0,0.00999999]
[1763293505419,0.02239426,95739.0,95721.0,0.01593]
[1763293505623,0.02239426,95738.0,95721.0,0.01593]
[1763293505828,0.02815594,95737.0,95721.0,0.01593]
[1763293506029,0.02239426,95736.0,95721.0,0.01593]
[1763293506358,0.02239426,95735.0,95721.0,0.01593]
[1763293506503,0.02239426,95734.0,95721.0,0.01593]
[1763293506705,0.02239426,95733.0,95721.0,0.01593]
[1763293507011,0.02239426,95732.0,95721.0,0.01593]
[1763293507217,0.02239426,95731.0,95721.0,0.01593]
[1763293507421,0.02239426,95730.0,95721.0,0.01593]
[1763293507643,0.02239426,95729.0,95721.0,0.0387]
[1763293507966,0.02239426,95728.0,95722.0,0.02277]
[1763293508167,0.01912255,95739.0,95722.0,0.02277]
[1763293508168,0.02239426,95727.0,95722.0,0.02277]
[1763293508375,0.02239426,95726.0,95722.0,0.02277]
[1763293508578,0.02239426,95725.0,95722.0,0.02277]
[1763293508780,0.02239426,95724.0,95722.0,0.02277]
[1763293509012,0.02239426,95723.0,95722.0,0.02277]
[1763293509390,0.04478852,95723.0,95722.0,0.02277]
[1763293511263,0.02012255,95723.0,95722.0,0.02277]
[1763293513147,0.02012255,95723.0,95722.0,0.02827254]
[1763293513312,0.01912255,95723.0,95722.0,0.02827254]
[1763293513517,0.01917708,95740.0,95731.0,0.02729]
[1763293513719,0.01404699,95741.0,95740.0,0.02729]
[1763293513971,0.02244818,95741.0,95740.0,0.02729]
[1763293514349,0.02244818,95741.0,95740.0,0.01136]
[1763293514972,0.02344818,95741.0,95740.0,0.01136]
[1763293516411,0.02344818,95741.0,95740.0,0.01095719]
[1763293518407,0.02017702,95741.0,95740.0,0.01095719]
[1763293518814,0.02017702,95741.0,95740.0,0.05437593]
[1763293519016,0.02017702,95741.0,95740.0,0.05981352]
[1763293519218,0.01917702,95741.0,95740.0,0.05981352]
[1763293520049,0.01920944,95771.0,95749.0,0.0281]
[1763293520288,0.02246922,95770.0,95749.0,0.0281]
[1763293520463,0.02246922,95769.0,95760.0,0.00999999]
[1763293520689,0.02246922,95768.0,95760.0,0.00999999]
[1763293521012,0.02246922,95767.0,95760.0,0.02899997]
[1763293521247,0.02246922,95766.0,95760.0,0.02899997]
[1763293521471,0.02246922,95765.0,95760.0,0.02899997]
[1763293521718,0.02246922,95764.0,95760.0,0.02899997]
[1763293521893,0.02246922,95763.0,95760.0,0.02899997]
[1763293522096,0.02246922,95762.0,95760.0,0.00999999]
[1763293522315,0.02246922,95761.0,95760.0,0.00999999]
[1763293524120,0.02346922,95761.0,95760.0,0.00999999]
[1763293524940,0.02346922,95761.0,95756.0,0.01222]
[1763293525157,0.02246922,95760.0,95750.0,0.04988769]
[1763293525374,0.001,95761.0,95750.0,0.04988769]
[1763293525375,0.02246922,95759.0,95750.0,0.04988769]
[1763293525585,0.02246922,95758.0,95750.0,0.04988769]
[1763293525799,0.00696,95769.0,95750.0,0.04988769]
[1763293525800,0.02246922,95757.0,95750.0,0.04988769]
[1763293526019,0.02246922,95756.0,95750.0,0.04988769]
[1763293526245,0.02246917,95755.0,95750.0,0.04988769]
[1763293526462,0.00045201,95771.0,95740.0,0.03539476]
[1763293526463,0.01919915,95754.0,95740.0,0.03539476]
[1763293526677,0.00696,95750.0,95740.0,0.00999999]
[1763293526909,0.01919915,95749.0,95740.0,0.00999999]
[1763293527115,0.01919915,95748.0,95734.0,0.01222]
[1763293527323,0.01919915,95747.0,95740.0,0.02899997]
[1763293527559,0.01919915,95746.0,95741.0,0.02088969]
[1763293527779,0.01919915,95745.0,95741.0,0.02088969]
[1763293528019,0.01919915,95744.0,95741.0,0.02088969]
[1763293528227,0.01919915,95743.0,95741.0,0.02088969]
[1763293528599,0.01919915,95742.0,95741.0,0.00562497]
[1763293528820,0.40488523,95802.0,95734.0,0.01222]
[1763293529043,0.227783,95797.0,95750.0,0.01899998]
[1763293529257,0.36641874,95798.0,95750.0,0.01899998]
[1763293529258,0.01222,95780.0,95750.0,0.01899998]
[1763293529470,0.00327017,95779.0,95750.0,0.01899998]
[1763293529912,0.00372218,95779.0,95750.0,0.01899998]
[1763293530123,0.00327017,95778.0,95735.0,0.04341874]
[1763293530328,0.00327017,95778.0,95735.0,0.05343261]
[1763293530540,0.00327017,95778.0,95760.0,0.00999999]
[1763293531898,0.00527017,95778.0,95760.0,0.00999999]
[1763293532106,0.00327017,95777.0,95770.0,0.00999999]
[1763293533179,0.00327017,95777.0,95760.0,0.00999999]
[1763293533654,0.00327017,95776.0,95760.0,0.00999999]
[1763293534273,0.00327017,95775.0,95760.0,0.00999999]
[1763293534479,0.00327017,95774.0,95760.0,0.00999999]
[1763293534672,0.00327017,95773.0,95760.0,0.00999999]
[1763293534889,0.00327017,95772.0,95760.0,0.00999999]
[1763293535083,0.00327017,95771.0,95760.0,0.00999999]
[1763293535229,0.00327017,95770.0,95760.0,0.00999999]
[1763293535436,0.00327017,95769.0,95760.0,0.00999999]
[1763293535683,0.00327017,95768.0,95760.0,0.00999999]
[1763293535884,0.00327017,95767.0,95760.0,0.00999999]
[1763293536084,0.00327017,95766.0,95760.0,0.00999999]
[1763293536306,0.00327017,95765.0,95760.0,0.00999999]
[1763293536513,0.00327017,95764.0,95760.0,0.00999999]
[1763293536713,0.00327017,95763.0,95760.0,0.00999999]
[1763293536924,0.00327017,95762.0,95760.0,0.00999999]
[1763293537127,0.00327017,95761.0,95760.0,0.00999999]
[1763293537324,0.00327017,95765.0,95760.0,0.00999999]
[1763293538139,0.00427017,95765.0,95760.0,0.00999999]
[1763293538340,0.00327017,95764.0,95760.0,0.00999999]
[1763293538767,0.00427017,95764.0,95760.0,0.00999999]
[1763293538976,0.00327017,95763.0,95760.0,0.00999999]
[1763293539143,0.00327017,95762.0,95760.0,0.00999999]
[1763293539320,0.00327017,95761.0,95760.0,0.00999999]
[1763293539526,0.00427017,95764.0,95760.0,0.00999999]
[1763293539723,0.00327017,95763.0,95736.0,0.00647926]
[1763293539987,0.00327017,95762.0,95740.0,0.00999999]
[1763293540117,0.00327017,95761.0,95734.0,0.01184]
[1763293540318,0.00327067,95760.0,95750.0,0.00999999]
[1763293540558,0.00327067,95759.0,95750.0,0.00999999]
[1763293540728,0.00327067,95758.0,95750.0,0.00999999]
[1763293540974,0.02249016,95757.0,95750.0,0.00999999]
[1763293541261,0.02249016,95756.0,95750.0,0.02899997]
[1763293541465,0.02249016,95755.0,95750.0,0.02899997]
[1763293541665,0.02250269,95754.0,95750.0,0.00999999]
[1763293541865,0.02250269,95753.0,95750.0,0.00999999]
[1763293542082,0.02250269,95752.0,95750.0,0.00999999]
[1763293542285,0.02250269,95751.0,95750.0,0.00999999]
[1763293542483,0.02250269,95751.0,95741.0,0.02088969]
[1763293542688,0.02250269,95750.0,95741.0,0.02088969]
[1763293542893,0.02250269,95749.0,95741.0,0.02088969]
[1763293543123,0.02250269,95748.0,95741.0,0.02088969]
[1763293543353,0.02250269,95747.0,95741.0,0.02706266]
[1763293543585,0.001,95754.0,95741.0,0.02706266]
[1763293543586,0.02250269,95746.0,95741.0,0.02706266]
[1763293543816,0.02250269,95745.0,95742.0,0.02088947]
[1763293544034,0.02250269,95744.0,95743.0,0.00560624]
[1763293544280,0.02250483,95744.0,95743.0,0.02649549]
[1763293546336,0.02250483,95744.0,95743.0,0.00560624]
[1763293546545,0.02250483,95744.0,95740.0,0.00999999]
[1763293546747,0.01923202,95743.0,95740.0,0.00999999]
[1763293546943,0.01923202,95742.0,95740.0,0.00999999]
[1763293547143,0.01923202,95741.0,95740.0,0.00999999]
[1763293547774,0.01923202,95744.0,95740.0,0.00999999]
[1763293548006,0.02250719,95743.0,95740.0,0.00999999]
[1763293548217,0.01923202,95742.0,95735.0,0.04341874]
[1763293548381,0.01923202,95741.0,95737.0,0.04341874]
[1763293548716,0.01923202,95740.0,95737.0,0.04341874]
[1763293548922,0.01923202,95739.0,95737.0,0.04341874]
[1763293549073,0.01923202,95738.0,95737.0,0.04341874]
[1763293549280,0.01923202,95744.0,95737.0,0.04341874]
[1763293549496,0.01923202,95744.0,95738.0,0.00761806]
[1763293551143,0.01923202,95744.0,95739.0,0.02089012]
[1763293551343,0.01923202,95744.0,95738.0,0.00761806]
[1763293551742,0.01923202,95744.0,95739.0,0.04341874]
[1763293556167,0.01923202,95744.0,95741.0,0.04341874]
[1763293556393,0.01923202,95744.0,95743.0,0.04341874]
[1763293556805,0.01923202,95744.0,95739.0,0.04341874]
[1763293557382,0.01923202,95744.0,95733.0,0.04341874]
[1763293557585,0.01923202,95744.0,95739.0,0.04341874]
[1763293561271,0.00013552,95745.0,95741.0,0.04341874]
[1763293569145,0.00013552,95745.0,95742.0,0.02088947]
[1763293569343,0.00013552,95745.0,95743.0,0.01051482]
[1763293569607,0.00013552,95745.0,95744.0,0.06430777]
[1763293570417,0.00013552,95745.0,95744.0,0.04341874]
[1763293580252,0.00013552,95745.0,95740.0,0.00999999]
[1763293580455,0.00013552,95745.0,95741.0,0.04341874]
[1763293580664,0.00013552,95745.0,95743.0,0.04341874]
[1763293580872,0.00013552,95745.0,95744.0,0.06430777]
[1763293581285,0.00013552,95745.0,95744.0,0.04441874]
[1763293581903,0.00013552,95745.0,95744.0,0.04341874]
[1763293583704,0.00013552,95745.0,95744.0,0.04441874]
[1763293584034,0.00013552,95745.0,95744.0,0.0524848]
[1763293586139,0.00013552,95745.0,95744.0,0.07337383]
[1763293587406,0.00013552,95745.0,95744.0,0.0524848]
[1763293587640,0.00013552,95745.0,95744.0,0.07337383]
[1763293588966,0.00013552,95745.0,95744.0,0.16262277]
[1763293591607,0.00013552,95745.0,95744.0,0.14173374]
[1763293592440,0.00013552,95745.0,95744.0,0.21947222]
[1763293592627,0.00013552,95745.0,95744.0,0.23954976]
[1763293592823,0.00013552,95745.0,95744.0,0.21947222]
[1763293604313,0.01515097,95801.0,95790.0,0.00999999]
[1763293604514,0.02250799,95800.0,95790.0,0.02899997]
[1763293604647,0.02250799,95799.0,95790.0,0.02899997]
[1763293604849,0.01923914,95798.0,95790.0,0.02899997]
[1763293605047,0.01923914,95797.0,95790.0,0.02899997]
[1763293605247,0.01923914,95796.0,95790.0,0.02899997]
[1763293605433,0.01923914,95795.0,95790.0,0.02899997]
[1763293605634,0.00045192,95801.0,95790.0,0.02899997]
[1763293605860,0.001,95799.0,95790.0,0.02899997]
[1763293606075,0.01923835,95798.0,95790.0,0.02899997]
[1763293606487,0.001,95796.0,95790.0,0.02899997]
[1763293606695,0.00245192,95801.0,95791.0,0.02087878]
[1763293606916,0.00045192,95801.0,95791.0,0.02087878]
[1763293607118,0.001,95799.0,95790.0,0.02899997]
[1763293607413,0.001,95798.0,95791.0,0.02087878]
[1763293607792,0.00045192,95801.0,95791.0,0.02087878]
[1763293607972,0.00145192,95801.0,95791.0,0.02087878]
[1763293608805,0.001,95796.0,95791.0,0.02087878]
[1763293609191,0.00145192,95801.0,95791.0,0.02087878]
[1763293609896,0.001,95796.0,95791.0,0.02087878]
[1763293610703,0.00145192,95801.0,95790.0,0.02899997]
[1763293611100,0.00245192,95801.0,95790.0,0.02899997]
[1763293611735,0.00145192,95801.0,95790.0,0.02899997]
[1763293611945,0.001,95796.0,95790.0,0.02899997]
[1763293612358,0.00045192,95801.0,95790.0,0.02899997]
[1763293612741,0.001,95796.0,95791.0,0.01900552]
[1763293613145,0.00045192,95801.0,95791.0,0.01900552]
[1763293613361,0.001,95796.0,95791.0,0.01900552]
[1763293613494,0.001,95796.0,95791.0,0.02087878]
[1763293613689,0.00145192,95801.0,95791.0,0.02087878]
[1763293613944,0.00045192,95801.0,95791.0,0.02087878]
[1763293614317,0.00145192,95801.0,95791.0,0.02087878]
[1763293614771,0.00145192,95801.0,95792.0,0.02087857]
[1763293615020,0.00145192,95801.0,95793.0,0.02087835]
[1763293615233,0.001,95796.0,95794.0,0.06429687]
[1763293615443,0.001,95796.0,95795.0,0.05483626]
[1763293615662,0.00145192,95801.0,95796.0,0.04341874]
[1763293616134,0.00045192,95801.0,95795.0,0.01141752]
[1763293616385,0.00145192,95801.0,95796.0,0.02087769]
[1763293616602,0.00145192,95801.0,95798.0,0.04341874]
[1763293616847,0.00145192,95801.0,95800.0,0.04341874]
[1763293617071,0.00245192,95801.0,95800.0,0.06429556]
[1763293617283,0.00145192,95801.0,95798.0,0.04341874]
[1763293617454,0.00245192,95801.0,95798.0,0.04341874]
[1763293617665,0.00245192,95801.0,95800.0,0.04341874]
[1763293618108,0.00245192,95801.0,95800.0,0.06429556]
[1763293618109,0.00145192,95801.0,95800.0,0.06429556]
[1763293618320,0.00145192,95801.0,95800.0,0.04341874]
[1763293619078,0.00245192,95801.0,95800.0,0.04341874]
[1763293625294,0.00245192,95801.0,95791.0,0.08911342]
[1763293625522,0.00245192,95801.0,95792.0,0.00991134]
[1763293626212,0.00145192,95801.0,95792.0,0.00991134]
[1763293626647,0.00245192,95801.0,95792.0,0.00991134]
[1763293627394,0.00145192,95801.0,95792.0,0.00991134]
[1763293627591,0.00245192,95801.0,95792.0,0.00991134]
[1763293627799,0.00145192,95801.0,95793.0,0.01280247]
[1763293628020,0.00145192,95801.0,95791.0,0.04341874]
[1763293628224,0.00245192,95801.0,95791.0,0.04341874]
[1763293628732,0.00145192,95801.0,95791.0,0.04341874]
[1763293629096,0.00245192,95801.0,95791.0,0.04341874]
[1763293629302,0.00145192,95801.0,95791.0,0.04341874]
[1763293629519,0.00145192,95801.0,95792.0,0.00724187]
[1763293629520,0.00045192,95801.0,95792.0,0.00724187]
[1763293631165,0.00245192,95801.0,95792.0,0.00724187]
[1763293631386,0.00145192,95801.0,95792.0,0.00724187]
[1763293631556,0.00045192,95801.0,95792.0,0.00724187]
[1763293631817,0.00145192,95801.0,95792.0,0.00724187]
[1763293632017,0.00245192,95801.0,95792.0,0.00724187]
[1763293632299,0.00245192,95801.0,95791.0,0.04341874]
[1763293632650,0.00245192,95801.0,95776.0,0.08911342]
[1763293632871,0.00245192,95801.0,95790.0,0.00999999]
[1763293633258,0.01924654,95800.0,95790.0,0.00999999]
[1763293633942,0.01924654,95800.0,95790.0,0.02899997]
[1763293634123,0.01924654,95800.0,95790.0,0.00999999]
[1763293634322,0.01924654,95800.0,95790.0,0.02899997]
[1763293634933,0.02024654,95800.0,95790.0,0.00999999]
[1763293635144,0.02024654,95800.0,95790.0,0.02899997]
[1763293635145,0.01924654,95799.0,95790.0,0.02899997]
[1763293637022,0.01924654,95799.0,95791.0,0.06429752]
[1763293637222,0.01924654,95799.0,95792.0,0.00932975]
[1763293637491,0.00045192,95801.0,95793.0,0.02087835]
[1763293637646,0.001,95799.0,95794.0,0.02087813]
[1763293637857,0.001,95799.0,95795.0,0.02087791]
[1763293638074,0.001,95799.0,95796.0,0.02087769]
[1763293638273,0.00045192,95801.0,95797.0,0.04154219]
[1763293638474,0.01926176,95800.0,95797.0,0.04154219]
[1763293638652,0.001,95799.0,95797.0,0.04154219]
[1763293639076,0.00045192,95801.0,95797.0,0.04154219]
[1763293639235,0.01926148,95800.0,95797.0,0.04154219]
[1763293639441,0.01926148,95800.0,95792.0,0.00932975]
[1763293639442,0.01926148,95800.0,95798.0,0.04070842]
[1763293639796,0.00145192,95801.0,95798.0,0.04070842]
[1763293640576,0.00145192,95801.0,95798.0,0.01983116]
[1763293640986,0.00045192,95801.0,95798.0,0.01983116]
[1763293641588,0.001,95800.0,95798.0,0.01983116]
[1763293641796,0.00045192,95801.0,95798.0,0.01983116]
[1763293642208,0.00145192,95801.0,95798.0,0.01983116]
[1763293642401,0.00145192,95801.0,95793.0,0.04341874]
[1763293643868,0.00145192,95801.0,95790.0,0.00999999]
[1763293644048,0.00045192,95801.0,95791.0,0.14743967]
[1763293644232,0.00045192,95801.0,95790.0,0.02899997]
[1763293644233,0.00145192,95801.0,95790.0,0.00999999]
[1763293644426,0.01927221,95800.0,95790.0,0.02899997]
[1763293644838,0.01927221,95800.0,95791.0,0.02087878]
[1763293645037,0.01927221,95800.0,95792.0,0.02087857]
[1763293645289,0.01927221,95800.0,95793.0,0.02087835]
[1763293645488,0.00145192,95801.0,95790.0,0.02899997]
[1763293645692,0.00045192,95801.0,95790.0,0.02899997]
[1763293651538,0.00045192,95801.0,95791.0,0.02087878]
[1763293651972,0.00045192,95801.0,95790.0,0.02899997]
[1763293654409,0.01928055,95800.0,95790.0,0.02899997]
[1763293661244,0.01928055,95800.0,95791.0,0.02087878]
[1763293663918,0.01928055,95800.0,95790.0,0.02899997]
[1763293667661,0.01928055,95800.0,95790.0,0.01899998]
[1763293667865,0.01928055,95800.0,95790.0,0.02899997]
[1763293668131,0.0385611,95800.0,95790.0,0.02899997]
[1763293668437,0.01928055,95799.0,95790.0,0.02899997]
[1763293669003,0.01928055,95799.0,95790.0,0.00999999]
[1763293669410,0.01928055,95799.0,95790.0,0.02899997]
[1763293669781,0.01928055,95799.0,95790.0,0.01899998]
[1763293669989,0.01928055,95799.0,95790.0,0.02899997]
[1763293671184,0.01928055,95799.0,95790.0,0.00999999]
[1763293671310,0.01928055,95799.0,95790.0,0.02899997]
[1763293671512,0.01928055,95798.0,95790.0,0.02899997]
[1763293671817,0.01928055,95797.0,95790.0,0.02899997]
[1763293671989,0.01928055,95796.0,95790.0,0.00999999]
[1763293672192,0.01928055,95795.0,95790.0,0.00999999]
[1763293672404,0.02259164,95794.0,95780.0,0.02899997]
[1763293672604,0.02259164,95793.0,95780.0,0.02899997]
[1763293672801,0.02259164,95792.0,95790.0,0.001]
[1763293672996,0.02259164,95791.0,95780.0,0.02899997]
[1763293673231,0.02259164,95790.0,95780.0,0.00999999]
[1763293673438,0.00045192,95801.0,95780.0,0.02899997]
[1763293673439,0.02259164,95789.0,95780.0,0.02899997]
[1763293673611,0.02259164,95788.0,95780.0,0.00999999]
[1763293673789,0.02257632,95787.0,95780.0,0.02899997]
[1763293673987,0.01926523,95786.0,95780.0,0.02899997]
[1763293674192,0.01926523,95785.0,95780.0,0.02899997]
[1763293674428,0.01926523,95784.0,95780.0,0.02899997]
[1763293674643,0.01926523,95783.0,95780.0,0.02899997]
[1763293674851,0.01926523,95782.0,95780.0,0.02899997]
[1763293675048,0.01926523,95782.0,95780.0,0.00999999]
[1763293676096,0.01926523,95782.0,95780.0,0.01099999]
[1763293676514,0.01926523,95782.0,95780.0,0.00999999]
[1763293676681,0.01926523,95782.0,95780.0,0.01099999]
[1763293679978,0.01926523,95782.0,95780.0,0.001]
[1763293680818,0.05064357,95781.0,95780.0,0.001]
[1763293681859,0.05164357,95781.0,95770.0,0.00999999]
[1763293682060,0.01926523,95780.0,95770.0,0.00999999]
[1763293682471,0.02321751,95779.0,95770.0,0.00999999]
[1763293682675,0.01926523,95778.0,95770.0,0.02899997]
[1763293682867,0.02321751,95777.0,95770.0,0.00999999]
[1763293683078,0.01926523,95776.0,95770.0,0.00999999]
[1763293683436,0.03237834,95781.0,95770.0,0.00999999]
[1763293683437,0.01926523,95775.0,95770.0,0.00999999]
[1763293683644,0.01926523,95774.0,95760.0,0.02899997]
[1763293683844,0.01926523,95773.0,95760.0,0.02899997]
[1763293684041,0.01926523,95772.0,95760.0,0.02899997]
[1763293684246,0.01926523,95771.0,95760.0,0.02899997]
[1763293685316,0.01971687,95771.0,95760.0,0.02899997]
[1763293685516,0.01926523,95770.0,95760.0,0.02899997]
[1763293685748,0.01926523,95769.0,95760.0,0.02899997]
[1763293685949,0.01926523,95768.0,95760.0,0.02899997]
[1763293686165,0.00045164,95771.0,95760.0,0.02899997]
[1763293686374,0.01919314,95770.0,95760.0,0.02899997]
[1763293688297,0.01919314,95770.0,95760.0,0.00999999]
[1763293688590,0.01919314,95770.0,95760.0,0.02899997]
[1763293688784,0.01919314,95770.0,95760.0,0.00999999]
[1763293688993,0.01919314,95770.0,95760.0,0.02899997]
[1763293689639,0.01919314,95770.0,95760.0,0.00999999]
[1763293689852,0.01919314,95770.0,95760.0,0.02899997]
[1763293691084,0.03137834,95769.0,95760.0,0.02899997]
[1763293691302,0.01919314,95768.0,95760.0,0.02899997]
[1763293692054,0.05057148,95767.0,95760.0,0.02899997]
[1763293692271,0.01919314,95766.0,95760.0,0.02899997]
[1763293693329,0.01919314,95765.0,95760.0,0.02899997]
[1763293694983,0.01919314,95765.0,95760.0,0.02999997]
[1763293697601,0.01919314,95765.0,95760.0,0.02986629]
[1763293698060,0.01919314,95765.0,95760.0,0.01086631]